[Event "Titled Tuesday Blitz April 11 Early 2023"]
[White "Novikova, Galina"]
[Black "Aldokhin, Ivan"]
[WhiteFideId "4157095"]
[BlackFideId "24115720"]
[WhiteElo "1953"]
[BlackElo "2322"]
[Result "1-0"]
[Round "02"]
[TimeControl "180+2"]
[Date "2023.04.11"]
[WhiteClock "0:00:10"]
[BlackClock "0:00:12"]

1. e4 {[%clk 0:03:00]}  c5 {[%clk 0:03:00]} 2. Nf3 {[%clk 0:03:01]}  e6 {[%clk 0:03:00]} 3. b4 {[%clk 0:03:00]}  cxb4 {[%clk 0:02:59]} 4. a3 {[%clk 0:03:00]}  b3 {[%clk 0:02:59]} 5. cxb3 {[%clk 0:03:00]}  d5 {[%clk 0:03:00]} 6. e5 {[%clk 0:03:00]}  Nc6 {[%clk 0:03:00]} 7. d4 {[%clk 0:03:00]}  f6 {[%clk 0:02:47]} 8. Bd3 {[%clk 0:02:59]}  fxe5 {[%clk 0:02:43]} 9. dxe5 {[%clk 0:03:00]}  Nge7 {[%clk 0:02:36]} 10. O-O {[%clk 0:02:59]}  Ng6 {[%clk 0:02:32]} 11. Bxg6+ {[%clk 0:02:51]}  hxg6 {[%clk 0:02:32]} 12. Qd3 {[%clk 0:02:48]}  Ne7 {[%clk 0:02:16]} 13. Bg5 {[%clk 0:02:47]}  Bd7 {[%clk 0:02:07]} 14. Nc3 {[%clk 0:02:19]}  Rc8 {[%clk 0:01:58]} 15. Rac1 {[%clk 0:02:12]}  a6 {[%clk 0:01:48]} 16. a4 {[%clk 0:01:55]}  Qa5 {[%clk 0:01:43]} 17. Bxe7 {[%clk 0:01:52]}  Bxe7 {[%clk 0:01:43]} 18. Qxg6+ {[%clk 0:01:52]}  Kf8 {[%clk 0:01:39]} 19. Ne2 {[%clk 0:01:35]}  Rh6 {[%clk 0:01:28]} 20. Qg4 {[%clk 0:01:03]}  Kg8 {[%clk 0:01:06]} 21. Rxc8+ {[%clk 0:00:55]}  Bxc8 {[%clk 0:01:06]} 22. Ng3 {[%clk 0:00:47]}  Qd8 {[%clk 0:00:44]} 23. Rc1 {[%clk 0:00:40]}  Bd7 {[%clk 0:00:44]} 24. h3 {[%clk 0:00:38]}  Be8 {[%clk 0:00:30]} 25. Qd4 {[%clk 0:00:30]}  Qa5 {[%clk 0:00:20]} 26. Rc8 {[%clk 0:00:28]}  Bd8 {[%clk 0:00:11]} 27. Qa7 {[%clk 0:00:21]}  Bd7 {[%clk 0:00:08]} 28. Rb8 {[%clk 0:00:20]}  Kf8 {[%clk 0:00:03]} 29. Qa8 {[%clk 0:00:21]}  Ke8 {[%clk 0:00:03]} 30. Qxb7 {[%clk 0:00:16]}  Qc3 {[%clk 0:00:03]} 31. Qa8 {[%clk 0:00:15]}  Qa5 {[%clk 0:00:03]} 32. Nd4 {[%clk 0:00:15]}  Rg6 {[%clk 0:00:03]} 33. Nc6 {[%clk 0:00:15]}  Bxc6 {[%clk 0:00:03]} 34. Qxc6+ {[%clk 0:00:16]}  Kf8 {[%clk 0:00:03]} 35. Qd6+ {[%clk 0:00:16]}  Ke8 {[%clk 0:00:03]} 36. Qc6+ {[%clk 0:00:16]}  Ke7 {[%clk 0:00:02]} 37. Qd6+ {[%clk 0:00:16]}  Ke8 {[%clk 0:00:03]} 38. Nh5 {[%clk 0:00:17]}  Rg5 {[%clk 0:00:02]} 39. Nf4 {[%clk 0:00:15]}  Qe1+ {[%clk 0:00:01]} 40. Kh2 {[%clk 0:00:15]}  Qxe5 {[%clk 0:00:02]} 41. Qxd8+ {[%clk 0:00:14]}  Kf7 {[%clk 0:00:03]} 42. g3 {[%clk 0:00:15]}  g6 {[%clk 0:00:01]} 43. Qe8+ {[%clk 0:00:14]}  Kg7 {[%clk 0:00:01]} 44. Qh8+ {[%clk 0:00:13]}  Kf7 {[%clk 0:00:01]} 45. Qxe5 {[%clk 0:00:14]}  Rxe5 {[%clk 0:00:01]} 46. Rb7+ {[%clk 0:00:15]}  Kf6 {[%clk 0:00:02]} 47. Nd3 {[%clk 0:00:15]}  Re4 {[%clk 0:00:02]} 48. Kg2 {[%clk 0:00:15]}  Rd4 {[%clk 0:00:02]} 49. Nf4 {[%clk 0:00:16]}  e5 {[%clk 0:00:02]} 50. Ne2 {[%clk 0:00:15]}  Rd2 {[%clk 0:00:03]} 51. Nc3 {[%clk 0:00:15]}  Kf5 {[%clk 0:00:02]} 52. g4+ {[%clk 0:00:15]}  Kf4 {[%clk 0:00:02]} 53. Rf7+ {[%clk 0:00:16]}  Kg5 {[%clk 0:00:02]} 54. Rd7 {[%clk 0:00:12]}  e4 {[%clk 0:00:01]} 55. Nxe4+ {[%clk 0:00:11]}  dxe4 {[%clk 0:00:02]} 56. Rxd2 {[%clk 0:00:11]}  Kf4 {[%clk 0:00:02]} 57. Rd6 {[%clk 0:00:10]}  g5 {[%clk 0:00:02]} 58. Kf1 {[%clk 0:00:09]}  Ke5 {[%clk 0:00:02]} 59. Rxa6 {[%clk 0:00:09]}  Kf4 {[%clk 0:00:03]} 60. Rf6+ {[%clk 0:00:09]}  Ke5 {[%clk 0:00:03]} 61. Rf8 {[%clk 0:00:10]}  Kd4 {[%clk 0:00:04]} 62. a5 {[%clk 0:00:11]}  e3 {[%clk 0:00:04]} 63. a6 {[%clk 0:00:10]}  Kd3 {[%clk 0:00:03]} 64. Rd8+ {[%clk 0:00:10]}  Ke4 {[%clk 0:00:03]} 65. Re8+ {[%clk 0:00:09]}  Kd3 {[%clk 0:00:03]} 66. fxe3 {[%clk 0:00:10]}  Kc2 {[%clk 0:00:03]} 67. a7 {[%clk 0:00:10]}  Kc3 {[%clk 0:00:04]} 68. b4 {[%clk 0:00:11]}  Kb2 {[%clk 0:00:04]} 69. b5 {[%clk 0:00:12]}  Kb3 {[%clk 0:00:05]} 70. b6 {[%clk 0:00:13]}  Kb2 {[%clk 0:00:06]} 71. b7 {[%clk 0:00:13]}  Kc2 {[%clk 0:00:07]} 72. Rc8+ {[%clk 0:00:13]}  Kd2 {[%clk 0:00:08]} 73. e4 {[%clk 0:00:12]}  Kd3 {[%clk 0:00:08]} 74. e5 {[%clk 0:00:13]}  Ke3 {[%clk 0:00:09]} 75. e6 {[%clk 0:00:13]}  Kf3 {[%clk 0:00:10]} 76. e7 {[%clk 0:00:13]}  Kg3 {[%clk 0:00:11]} 77. Rc3+ {[%clk 0:00:13]}  Kh2 {[%clk 0:00:11]} 78. Rc2+ {[%clk 0:00:13]}  Kh1 {[%clk 0:00:11]} 79. Ke2 {[%clk 0:00:12]}  Kg2 {[%clk 0:00:11]} 80. e8=Q {[%clk 0:00:11]}  Kg1 {[%clk 0:00:11]} 81. Qe3+ {[%clk 0:00:10]}  Kg2 {[%clk 0:00:12]} 82. Kd3+ {[%clk 0:00:10]}  Kh1 {[%clk 0:00:12]} 83. Qc1# {[%clk 0:00:10]} 1-0


[Site "https://www.chess.com"]

[Event "Titled Tuesday Blitz April 11 Early 2023"]
[White "Biriukov, Ilja"]
[Black "Tan, Zhongyi"]
[WhiteFideId "4113373"]
[BlackFideId "8603642"]
[WhiteElo "2426"]
[BlackElo "2519"]
[Result "0-1"]
[Round "02"]
[TimeControl "180+2"]
[Date "2023.04.11"]
[WhiteClock "0:00:05"]
[BlackClock "0:00:08"]

1. d4 {[%clk 0:03:00]}  d5 {[%clk 0:02:59]} 2. Nc3 {[%clk 0:03:00]}  c5 {[%clk 0:02:58]} 3. Nf3 {[%clk 0:02:57]}  Nf6 {[%clk 0:02:42]} 4. Bf4 {[%clk 0:02:49]}  e6 {[%clk 0:02:34]} 5. e3 {[%clk 0:02:39]}  a6 {[%clk 0:02:25]} 6. Bd3 {[%clk 0:02:29]}  Nc6 {[%clk 0:02:24]} 7. O-O {[%clk 0:02:27]}  c4 {[%clk 0:02:22]} 8. Be2 {[%clk 0:02:26]}  Bd6 {[%clk 0:02:22]} 9. Ne5 {[%clk 0:02:20]}  Qc7 {[%clk 0:02:22]} 10. Nxc6 {[%clk 0:02:20]}  bxc6 {[%clk 0:02:20]} 11. Bxd6 {[%clk 0:02:14]}  Qxd6 {[%clk 0:02:21]} 12. Na4 {[%clk 0:02:14]}  O-O {[%clk 0:02:20]} 13. b3 {[%clk 0:02:09]}  cxb3 {[%clk 0:02:14]} 14. axb3 {[%clk 0:02:10]}  a5 {[%clk 0:02:10]} 15. Nc5 {[%clk 0:02:09]}  e5 {[%clk 0:02:08]} 16. Qd2 {[%clk 0:02:01]}  exd4 {[%clk 0:02:05]} 17. exd4 {[%clk 0:02:02]}  Re8 {[%clk 0:02:04]} 18. Bf3 {[%clk 0:02:00]}  Bg4 {[%clk 0:02:00]} 19. Bxg4 {[%clk 0:01:47]}  Nxg4 {[%clk 0:02:01]} 20. g3 {[%clk 0:01:47]}  Ne5 {[%clk 0:01:58]} 21. Qf4 {[%clk 0:01:36]}  Qf8 {[%clk 0:01:28]} 22. Nb7 {[%clk 0:01:18]}  Ng6 {[%clk 0:01:25]} 23. Qg5 {[%clk 0:01:08]}  h6 {[%clk 0:01:24]} 24. Qd2 {[%clk 0:01:06]}  Qb4 {[%clk 0:01:22]} 25. Qxb4 {[%clk 0:01:03]}  axb4 {[%clk 0:01:23]} 26. Nc5 {[%clk 0:01:00]}  Ne7 {[%clk 0:01:19]} 27. Rfe1 {[%clk 0:00:56]}  Rxa1 {[%clk 0:01:16]} 28. Rxa1 {[%clk 0:00:57]}  Nf5 {[%clk 0:01:16]} 29. Nd3 {[%clk 0:00:34]}  Nxd4 {[%clk 0:01:14]} 30. Nxb4 {[%clk 0:00:34]}  Re2 {[%clk 0:01:09]} 31. Rc1 {[%clk 0:00:29]}  Rd2 {[%clk 0:01:06]} 32. Kf1 {[%clk 0:00:24]}  Kf8 {[%clk 0:00:49]} 33. Ke1 {[%clk 0:00:20]}  Nf3+ {[%clk 0:00:49]} 34. Kf1 {[%clk 0:00:21]}  c5 {[%clk 0:00:44]} 35. Kg2 {[%clk 0:00:17]}  Nxh2 {[%clk 0:00:27]} 36. Nxd5 {[%clk 0:00:16]}  Ng4 {[%clk 0:00:27]} 37. Nf4 {[%clk 0:00:15]}  Rxf2+ {[%clk 0:00:26]} 38. Kg1 {[%clk 0:00:15]}  Rd2 {[%clk 0:00:24]} 39. b4 {[%clk 0:00:15]}  cxb4 {[%clk 0:00:24]} 40. Rb1 {[%clk 0:00:15]}  Rxc2 {[%clk 0:00:23]} 41. Rxb4 {[%clk 0:00:16]}  Ne3 {[%clk 0:00:17]} 42. Rb8+ {[%clk 0:00:13]}  Ke7 {[%clk 0:00:17]} 43. Rb7+ {[%clk 0:00:14]}  Kf6 {[%clk 0:00:17]} 44. Rb6+ {[%clk 0:00:14]}  Kf5 {[%clk 0:00:17]} 45. Rb7 {[%clk 0:00:14]}  g5 {[%clk 0:00:15]} 46. Rxf7+ {[%clk 0:00:13]}  Kg4 {[%clk 0:00:15]} 47. Nd3 {[%clk 0:00:12]}  Kxg3 {[%clk 0:00:11]} 48. Rf1 {[%clk 0:00:08]}  Nxf1 {[%clk 0:00:10]} 49. Kxf1 {[%clk 0:00:09]}  Rd2 {[%clk 0:00:09]} 50. Ne5 {[%clk 0:00:08]}  Rf2+ {[%clk 0:00:08]} 51. Ke1 {[%clk 0:00:07]}  h5 {[%clk 0:00:08]} 52. Nd3 {[%clk 0:00:07]}  Ra2 {[%clk 0:00:08]} 53. Ne5 {[%clk 0:00:06]}  h4 {[%clk 0:00:08]} 54. Nd3 {[%clk 0:00:05]}  h3 {[%clk 0:00:08]} 0-1


[Site "https://www.chess.com"]

[Event "Titled Tuesday Blitz April 11 Early 2023"]
[White "Orujov2008"]
[Black "Dronavalli, Harika"]
[BlackFideId "5015197"]
[WhiteElo "2305"]
[BlackElo "2432"]
[Result "0-1"]
[Round "02"]
[TimeControl "180+2"]
[Date "2023.04.11"]
[WhiteClock "0:00:02"]
[BlackClock "0:00:34"]

1. e4 {[%clk 0:03:00]}  g6 {[%clk 0:02:53]} 2. d4 {[%clk 0:03:00]}  Bg7 {[%clk 0:02:53]} 3. Nc3 {[%clk 0:03:00]}  d6 {[%clk 0:02:53]} 4. Nf3 {[%clk 0:03:01]}  a6 {[%clk 0:02:52]} 5. Be3 {[%clk 0:03:01]}  b5 {[%clk 0:02:50]} 6. h4 {[%clk 0:03:01]}  h6 {[%clk 0:02:45]} 7. h5 {[%clk 0:02:52]}  g5 {[%clk 0:02:45]} 8. Be2 {[%clk 0:02:50]}  Bb7 {[%clk 0:02:44]} 9. a4 {[%clk 0:02:39]}  b4 {[%clk 0:02:43]} 10. Na2 {[%clk 0:02:38]}  a5 {[%clk 0:02:32]} 11. c3 {[%clk 0:02:39]}  bxc3 {[%clk 0:02:22]} 12. Nxc3 {[%clk 0:02:40]}  Nf6 {[%clk 0:02:21]} 13. d5 {[%clk 0:02:37]}  c5 {[%clk 0:02:16]} 14. O-O {[%clk 0:02:25]}  O-O {[%clk 0:02:15]} 15. Nd2 {[%clk 0:02:25]}  Nbd7 {[%clk 0:02:06]} 16. Nc4 {[%clk 0:02:20]}  Ba6 {[%clk 0:01:56]} 17. Na3 {[%clk 0:02:05]}  Bxe2 {[%clk 0:01:50]} 18. Qxe2 {[%clk 0:02:06]}  Ne5 {[%clk 0:01:48]} 19. f4 {[%clk 0:01:43]}  gxf4 {[%clk 0:01:48]} 20. Bxf4 {[%clk 0:01:43]}  Neg4 {[%clk 0:01:42]} 21. Nc4 {[%clk 0:01:35]}  Rb8 {[%clk 0:01:27]} 22. Rf3 {[%clk 0:01:32]}  Nxh5 {[%clk 0:01:22]} 23. Raf1 {[%clk 0:00:58]}  Bd4+ {[%clk 0:01:13]} 24. Kh1 {[%clk 0:00:57]}  e5 {[%clk 0:01:13]} 25. Bh2 {[%clk 0:00:21]}  Rb4 {[%clk 0:00:46]} 26. Rh3 {[%clk 0:00:12]}  Qg5 {[%clk 0:00:44]} 27. Rf5 {[%clk 0:00:07]}  Qc1+ {[%clk 0:00:36]} 28. Rf1 {[%clk 0:00:07]}  Qxf1+ {[%clk 0:00:32]} 29. Qxf1 {[%clk 0:00:06]}  Nf2+ {[%clk 0:00:32]} 30. Kg1 {[%clk 0:00:02]}  Nxh3+ {[%clk 0:00:33]} 31. Kh1 {[%clk 0:00:02]}  Nf2+ {[%clk 0:00:33]} 32. Kg1 {[%clk 0:00:02]}  Nxe4+ {[%clk 0:00:33]} 33. Kh1 {[%clk 0:00:02]}  Nhg3+ {[%clk 0:00:33]} 34. Bxg3 {[%clk 0:00:02]}  Nxg3+ {[%clk 0:00:34]} 0-1


[Site "https://www.chess.com"]

[Event "Titled Tuesday Blitz April 11 Early 2023"]
[White "Risteski, Emil"]
[Black "MunichMouse"]
[WhiteFideId "15005267"]
[WhiteElo "2251"]
[BlackElo "2302"]
[Result "1/2-1/2"]
[Round "02"]
[TimeControl "180+2"]
[Date "2023.04.11"]
[WhiteClock "0:00:08"]
[BlackClock "0:00:13"]

1. Nf3 {[%clk 0:03:00]}  Nf6 {[%clk 0:02:56]} 2. g3 {[%clk 0:03:00]}  g6 {[%clk 0:02:57]} 3. Bg2 {[%clk 0:03:01]}  c5 {[%clk 0:02:57]} 4. O-O {[%clk 0:03:01]}  Bg7 {[%clk 0:02:58]} 5. d3 {[%clk 0:03:02]}  O-O {[%clk 0:02:57]} 6. e4 {[%clk 0:03:02]}  d6 {[%clk 0:02:57]} 7. Re1 {[%clk 0:03:01]}  e5 {[%clk 0:02:57]} 8. Nc3 {[%clk 0:02:57]}  h6 {[%clk 0:02:58]} 9. Nd2 {[%clk 0:02:57]}  Nc6 {[%clk 0:02:57]} 10. Nc4 {[%clk 0:02:58]}  Ne8 {[%clk 0:02:53]} 11. a4 {[%clk 0:02:57]}  f5 {[%clk 0:02:52]} 12. f4 {[%clk 0:02:56]}  Be6 {[%clk 0:02:47]} 13. Nd5 {[%clk 0:02:50]}  Qd7 {[%clk 0:02:29]} 14. c3 {[%clk 0:02:43]}  Rd8 {[%clk 0:02:27]} 15. Be3 {[%clk 0:02:26]}  b6 {[%clk 0:02:26]} 16. Qd2 {[%clk 0:02:24]}  Kh7 {[%clk 0:02:25]} 17. Rad1 {[%clk 0:02:16]}  Ne7 {[%clk 0:02:24]} 18. Qc2 {[%clk 0:01:51]}  Nxd5 {[%clk 0:02:10]} 19. exd5 {[%clk 0:01:50]}  Bg8 {[%clk 0:02:11]} 20. b4 {[%clk 0:01:36]}  cxb4 {[%clk 0:02:08]} 21. cxb4 {[%clk 0:01:35]}  Rc8 {[%clk 0:02:08]} 22. Qb3 {[%clk 0:01:27]}  Nf6 {[%clk 0:01:47]} 23. fxe5 {[%clk 0:01:23]}  Nxd5 {[%clk 0:01:47]} 24. Bf2 {[%clk 0:01:16]}  dxe5 {[%clk 0:01:43]} 25. b5 {[%clk 0:00:40]}  Rce8 {[%clk 0:01:28]} 26. a5 {[%clk 0:00:37]}  bxa5 {[%clk 0:01:19]} 27. Qa3 {[%clk 0:00:35]}  Rb8 {[%clk 0:01:16]} 28. Nxe5 {[%clk 0:00:31]}  Qxb5 {[%clk 0:01:07]} 29. Bxa7 {[%clk 0:00:24]}  Rbe8 {[%clk 0:01:02]} 30. Nc4 {[%clk 0:00:24]}  Nb4 {[%clk 0:00:54]} 31. Qxa5 {[%clk 0:00:21]}  Rxe1+ {[%clk 0:00:44]} 32. Rxe1 {[%clk 0:00:19]}  Qxa5 {[%clk 0:00:43]} 33. Nxa5 {[%clk 0:00:20]}  Nxd3 {[%clk 0:00:42]} 34. Re7 {[%clk 0:00:20]}  Rf7 {[%clk 0:00:41]} 35. Rxf7 {[%clk 0:00:21]}  Bxf7 {[%clk 0:00:41]} 36. Nc6 {[%clk 0:00:22]}  Ne5 {[%clk 0:00:40]} 37. Nxe5 {[%clk 0:00:21]}  Bxe5 {[%clk 0:00:41]} 38. Be3 {[%clk 0:00:21]}  Kg7 {[%clk 0:00:41]} 39. Kf2 {[%clk 0:00:21]}  g5 {[%clk 0:00:42]} 40. h3 {[%clk 0:00:21]}  Kf6 {[%clk 0:00:42]} 41. Bf3 {[%clk 0:00:21]}  Bc4 {[%clk 0:00:42]} 42. Bg2 {[%clk 0:00:21]}  f4 {[%clk 0:00:37]} 43. gxf4 {[%clk 0:00:21]}  gxf4 {[%clk 0:00:38]} 44. Bc5 {[%clk 0:00:22]}  Kf5 {[%clk 0:00:37]} 45. Bf3 {[%clk 0:00:21]}  Bf7 {[%clk 0:00:33]} 46. Bg4+ {[%clk 0:00:21]}  Ke4 {[%clk 0:00:33]} 47. Bf3+ {[%clk 0:00:22]}  Kd3 {[%clk 0:00:33]} 48. Bb6 {[%clk 0:00:20]}  h5 {[%clk 0:00:29]} 49. Ba7 {[%clk 0:00:16]}  h4 {[%clk 0:00:29]} 50. Bb6 {[%clk 0:00:14]}  Be6 {[%clk 0:00:29]} 51. Bd8 {[%clk 0:00:11]}  Bxh3 {[%clk 0:00:25]} 52. Bxh4 {[%clk 0:00:11]}  Bd4+ {[%clk 0:00:26]} 53. Ke1 {[%clk 0:00:11]}  Bc3+ {[%clk 0:00:19]} 54. Kf2 {[%clk 0:00:11]}  Bd4+ {[%clk 0:00:17]} 55. Ke1 {[%clk 0:00:12]}  Be3 {[%clk 0:00:16]} 56. Bf2 {[%clk 0:00:11]}  Kd4 {[%clk 0:00:16]} 57. Bxe3+ {[%clk 0:00:11]}  Kxe3 {[%clk 0:00:17]} 58. Bh5 {[%clk 0:00:12]}  Bg2 {[%clk 0:00:16]} 59. Bg4 {[%clk 0:00:10]}  Bf3 {[%clk 0:00:16]} 60. Bd7 {[%clk 0:00:09]}  Be4 {[%clk 0:00:15]} 61. Bg4 {[%clk 0:00:09]}  Bf3 {[%clk 0:00:14]} 62. Bd7 {[%clk 0:00:09]}  Bh5 {[%clk 0:00:13]} 63. Bc6 {[%clk 0:00:09]}  f3 {[%clk 0:00:13]} 64. Bxf3 {[%clk 0:00:08]} 1/2-1/2


[Site "https://www.chess.com"]

[Event "Titled Tuesday Blitz April 11 Early 2023"]
[White "La Villa Rivas, Marlon Javier"]
[Black "Karthikeyan, Murali"]
[WhiteFideId "3519546"]
[BlackFideId "5074452"]
[WhiteElo "2135"]
[BlackElo "2523"]
[Result "0-1"]
[Round "02"]
[TimeControl "180+2"]
[Date "2023.04.11"]
[WhiteClock "0:00:27"]
[BlackClock "0:01:52"]

1. e4 {[%clk 0:03:00]}  c5 {[%clk 0:02:57]} 2. Nf3 {[%clk 0:03:00]}  Nc6 {[%clk 0:02:58]} 3. Bb5 {[%clk 0:02:57]}  d6 {[%clk 0:02:58]} 4. d4 {[%clk 0:02:52]}  cxd4 {[%clk 0:02:57]} 5. Qxd4 {[%clk 0:02:52]}  Bd7 {[%clk 0:02:54]} 6. Bxc6 {[%clk 0:02:51]}  Bxc6 {[%clk 0:02:54]} 7. Nc3 {[%clk 0:02:52]}  e5 {[%clk 0:02:52]} 8. Qd3 {[%clk 0:02:38]}  h6 {[%clk 0:02:52]} 9. Be3 {[%clk 0:02:35]}  Nf6 {[%clk 0:02:51]} 10. O-O-O {[%clk 0:02:33]}  Rc8 {[%clk 0:02:47]} 11. h3 {[%clk 0:02:29]}  Qa5 {[%clk 0:02:45]} 12. Kb1 {[%clk 0:02:27]}  b5 {[%clk 0:02:40]} 13. g4 {[%clk 0:02:23]}  b4 {[%clk 0:02:39]} 14. Nd5 {[%clk 0:02:23]}  Bxd5 {[%clk 0:02:38]} 15. exd5 {[%clk 0:02:20]}  e4 {[%clk 0:02:39]} 16. Qd4 {[%clk 0:02:08]}  exf3 {[%clk 0:02:36]} 17. g5 {[%clk 0:02:07]}  hxg5 {[%clk 0:02:26]} 18. Bxg5 {[%clk 0:02:06]}  Be7 {[%clk 0:02:23]} 19. Rhe1 {[%clk 0:02:05]}  Qc7 {[%clk 0:02:22]} 20. Qxb4 {[%clk 0:01:49]}  Qxc2+ {[%clk 0:02:03]} 21. Ka1 {[%clk 0:01:47]}  O-O {[%clk 0:02:04]} 22. Rc1 {[%clk 0:01:40]}  Qxf2 {[%clk 0:02:03]} 23. Rxe7 {[%clk 0:01:37]}  Nxd5 {[%clk 0:02:00]} 24. Qe1 {[%clk 0:01:20]}  Qg2 {[%clk 0:01:55]} 25. Rxc8 {[%clk 0:00:54]}  Rxc8 {[%clk 0:01:56]} 26. Re8+ {[%clk 0:00:50]}  Rxe8 {[%clk 0:01:56]} 27. Qxe8+ {[%clk 0:00:50]}  Kh7 {[%clk 0:01:57]} 28. Qe4+ {[%clk 0:00:50]}  g6 {[%clk 0:01:58]} 29. Qh4+ {[%clk 0:00:28]}  Kg8 {[%clk 0:01:55]} 30. a3 {[%clk 0:00:27]}  f2 {[%clk 0:01:52]} 0-1


[Site "https://www.chess.com"]

[Event "Titled Tuesday Blitz April 11 Early 2023"]
[White "Ingebretsen, Jens E"]
[Black "morozcoma"]
[WhiteFideId "1522965"]
[WhiteElo "2213"]
[BlackElo "2267"]
[Result "1-0"]
[Round "02"]
[TimeControl "180+2"]
[Date "2023.04.11"]
[WhiteClock "0:01:45"]
[BlackClock "0:01:20"]

1. d4 {[%clk 0:03:00]}  d5 {[%clk 0:02:59]} 2. Nf3 {[%clk 0:03:01]}  Nf6 {[%clk 0:02:58]} 3. b3 {[%clk 0:03:01]}  g6 {[%clk 0:02:57]} 4. Bb2 {[%clk 0:03:02]}  Bg7 {[%clk 0:02:57]} 5. e3 {[%clk 0:03:02]}  O-O {[%clk 0:02:58]} 6. Be2 {[%clk 0:03:03]}  c5 {[%clk 0:02:56]} 7. O-O {[%clk 0:03:03]}  cxd4 {[%clk 0:02:55]} 8. exd4 {[%clk 0:03:04]}  Nc6 {[%clk 0:02:55]} 9. Re1 {[%clk 0:03:04]}  Bf5 {[%clk 0:02:55]} 10. a3 {[%clk 0:03:03]}  Rc8 {[%clk 0:02:55]} 11. Bd3 {[%clk 0:02:58]}  Qd7 {[%clk 0:02:52]} 12. b4 {[%clk 0:02:40]}  Ne4 {[%clk 0:02:49]} 13. c4 {[%clk 0:02:37]}  e6 {[%clk 0:02:44]} 14. c5 {[%clk 0:02:27]}  f6 {[%clk 0:02:20]} 15. Nc3 {[%clk 0:02:21]}  Nxc3 {[%clk 0:02:08]} 16. Bxc3 {[%clk 0:02:21]}  Rce8 {[%clk 0:02:01]} 17. b5 {[%clk 0:02:05]}  Nd8 {[%clk 0:01:58]} 18. Bb4 {[%clk 0:02:06]}  Rf7 {[%clk 0:01:57]} 19. Rc1 {[%clk 0:02:03]}  e5 {[%clk 0:01:47]} 20. c6 {[%clk 0:01:55]}  bxc6 {[%clk 0:01:34]} 21. bxc6 {[%clk 0:01:55]}  Qc7 {[%clk 0:01:33]} 22. Bxf5 {[%clk 0:01:46]}  gxf5 {[%clk 0:01:27]} 23. dxe5 {[%clk 0:01:47]}  fxe5 {[%clk 0:01:26]} 24. Qxd5 {[%clk 0:01:47]}  e4 {[%clk 0:01:27]} 25. Ng5 {[%clk 0:01:47]}  Ne6 {[%clk 0:01:22]} 26. Nxf7 {[%clk 0:01:45]}  Kxf7 {[%clk 0:01:22]} 27. Qxf5+ {[%clk 0:01:45]}  Kg8 {[%clk 0:01:20]} 28. Rxe4 {[%clk 0:01:45]} 1-0


[Site "https://www.chess.com"]

[Event "Titled Tuesday Blitz April 11 Early 2023"]
[White "Dylag, Emilia"]
[Black "Rakhmatullaev, Almas"]
[WhiteFideId "21805172"]
[BlackFideId "14205793"]
[WhiteElo "1878"]
[BlackElo "2221"]
[Result "0-1"]
[Round "02"]
[TimeControl "180+2"]
[Date "2023.04.11"]
[WhiteClock "0:00:01"]
[BlackClock "0:00:23"]

1. d4 {[%clk 0:02:54]}  Nf6 {[%clk 0:02:59]} 2. c4 {[%clk 0:02:53]}  g6 {[%clk 0:02:59]} 3. g3 {[%clk 0:02:51]}  Bg7 {[%clk 0:03:00]} 4. Bg2 {[%clk 0:02:51]}  O-O {[%clk 0:03:00]} 5. Nf3 {[%clk 0:02:51]}  d6 {[%clk 0:03:01]} 6. O-O {[%clk 0:02:52]}  c6 {[%clk 0:03:02]} 7. Nc3 {[%clk 0:02:51]}  Bf5 {[%clk 0:03:03]} 8. Nh4 {[%clk 0:02:45]}  Be6 {[%clk 0:03:03]} 9. b3 {[%clk 0:02:41]}  d5 {[%clk 0:02:55]} 10. c5 {[%clk 0:02:36]}  Qc8 {[%clk 0:02:42]} 11. Re1 {[%clk 0:02:34]}  Bh3 {[%clk 0:02:41]} 12. Bh1 {[%clk 0:02:34]}  Re8 {[%clk 0:02:37]} 13. e4 {[%clk 0:02:31]}  dxe4 {[%clk 0:02:37]} 14. Nxe4 {[%clk 0:02:32]}  Nxe4 {[%clk 0:02:33]} 15. Bxe4 {[%clk 0:02:33]}  Nd7 {[%clk 0:02:31]} 16. Bg5 {[%clk 0:01:34]}  e5 {[%clk 0:02:14]} 17. Be3 {[%clk 0:01:18]}  Nf6 {[%clk 0:02:04]} 18. Bg2 {[%clk 0:01:17]}  Bxg2 {[%clk 0:02:02]} 19. Nxg2 {[%clk 0:01:18]}  Nd5 {[%clk 0:02:02]} 20. dxe5 {[%clk 0:01:14]}  Rxe5 {[%clk 0:01:42]} 21. Bd4 {[%clk 0:01:08]}  Rxe1+ {[%clk 0:01:39]} 22. Nxe1 {[%clk 0:01:09]}  Qf5 {[%clk 0:01:39]} 23. Bxg7 {[%clk 0:01:06]}  Kxg7 {[%clk 0:01:40]} 24. Qd4+ {[%clk 0:01:06]}  Qf6 {[%clk 0:01:39]} 25. Nc2 {[%clk 0:00:53]}  Re8 {[%clk 0:01:36]} 26. Qxf6+ {[%clk 0:00:48]}  Kxf6 {[%clk 0:01:37]} 27. Kf1 {[%clk 0:00:43]}  h6 {[%clk 0:01:35]} 28. Re1 {[%clk 0:00:40]}  Rd8 {[%clk 0:01:22]} 29. Rd1 {[%clk 0:00:31]}  h5 {[%clk 0:01:20]} 30. a3 {[%clk 0:00:25]}  Re8 {[%clk 0:01:09]} 31. Re1 {[%clk 0:00:24]}  Re5 {[%clk 0:01:07]} 32. Rxe5 {[%clk 0:00:23]}  Kxe5 {[%clk 0:01:07]} 33. Ke2 {[%clk 0:00:21]}  h4 {[%clk 0:00:59]} 34. Kd3 {[%clk 0:00:17]}  h3 {[%clk 0:00:59]} 35. f4+ {[%clk 0:00:15]}  Kf5 {[%clk 0:00:52]} 36. Ne3+ {[%clk 0:00:14]}  Ke6 {[%clk 0:00:43]} 37. Nc4 {[%clk 0:00:14]}  Nf6 {[%clk 0:00:39]} 38. Nd6 {[%clk 0:00:13]}  Ng4 {[%clk 0:00:39]} 39. Ne4 {[%clk 0:00:09]}  f6 {[%clk 0:00:39]} 40. Ke2 {[%clk 0:00:04]}  Kd5 {[%clk 0:00:30]} 41. Nd6 {[%clk 0:00:05]}  Nxh2 {[%clk 0:00:28]} 42. Kf2 {[%clk 0:00:04]}  Ng4+ {[%clk 0:00:28]} 43. Kg1 {[%clk 0:00:04]}  h2+ {[%clk 0:00:28]} 44. Kh1 {[%clk 0:00:05]}  b6 {[%clk 0:00:21]} 45. cxb6 {[%clk 0:00:04]}  axb6 {[%clk 0:00:22]} 46. Nc4 {[%clk 0:00:04]}  b5 {[%clk 0:00:22]} 47. Nd2 {[%clk 0:00:05]}  c5 {[%clk 0:00:22]} 48. Nf3 {[%clk 0:00:05]}  c4 {[%clk 0:00:22]} 49. bxc4+ {[%clk 0:00:03]}  bxc4 {[%clk 0:00:23]} 50. Nd2 {[%clk 0:00:01]}  c3 {[%clk 0:00:23]} 51. Nb3 {[%clk 0:00:01]}  c2 {[%clk 0:00:23]} 52. Nc1 {[%clk 0:00:01]}  Kc4 {[%clk 0:00:23]} 0-1


[Site "https://www.chess.com"]